fUST/lending_fUST_20240417
["ID","MTS","AMOUNT","RATE_DAILY","PERIOD"]
[322802132,1713332599532,185.6345545,0.00021,2]
[322802134,1713332601358,1488.61335239,0.00021,2]
[322802135,1713332601708,156.46073234,0.00021,2]
[322802136,1713332602505,258.40280289,0.00021,2]
[322802137,1713332602668,2092.1280524,0.00021,2]
[322802140,1713332682300,282.5363333,0.00019996,2]
[322802142,1713332906843,24900.0,0.00019784,2]
[322802143,1713332934210,213.29432251,0.0001974,2]
[322802144,1713332948319,432.982941,0.00019775,2]
[322802145,1713332995208,2389.93546808,0.000189,2]
[322802146,1713333029252,250.0,0.00019664,2]
[322802221,1713333032522,-154.86062544,0.0002066,2]
[322802223,1713333032533,-154.86062544,0.0002066,2]
[322802225,1713333032542,-154.86062544,0.0002066,2]
[322802227,1713333032552,-400.0,0.0002066,2]
[322802229,1713333032561,-157.5764134,0.0002066,2]
[322802231,1713333032571,-237.92490957,0.0002066,2]
[322802233,1713333032580,-154.86062544,0.00020661,2]
[322802234,1713333032590,-882.7275178,0.00020661,2]
[322802236,1713333032602,-2096.98803724,0.00020661,2]
[322802237,1713333032612,-2621.14214872,0.00020661,2]
[322802238,1713333032628,-2942.63433838,0.00020661,2]
[322802239,1713333032638,-2621.14214872,0.00020661,2]
[322802240,1713333032647,-163.98644275,0.00020662,2]
[322802241,1713333032657,-1673.80049163,0.00020662,2]
[322802242,1713333032667,-1310.15475715,0.00020662,2]
[322802243,1713333032678,-154.86062544,0.00020662,2]
[322802244,1713333032689,-203.92427323,0.00020662,2]
[322802245,1713333032698,-1548.91382456,0.00020662,2]
[322802246,1713333032709,-154.86062544,0.00020663,2]
[322802247,1713333032719,-154.86062544,0.00020663,2]
[322802248,1713333032729,-211.83113783,0.00020663,2]
[322802249,1713333032738,-154.86062544,0.00020663,2]
[322802250,1713333032746,-154.86062544,0.00020664,2]
[322802251,1713333032755,-193.3820055,0.00020664,2]
[322802252,1713333032764,-156.84586358,0.00020664,2]
[322802253,1713333032773,-277.60171443,0.00020664,2]
[322802254,1713333032783,-246.93293796,0.00020664,2]
[322802255,1713333032792,-300.0,0.00020664,2]
[322802256,1713333032801,-300.0,0.00020664,2]
[322802257,1713333032810,-965.39339888,0.00020665,2]
[322802258,1713333032819,-154.86062544,0.00020665,2]
[322802259,1713333032828,-154.86062544,0.00020665,2]
[322802260,1713333032837,-783.87866091,0.00020665,2]
[322802261,1713333032846,-282.92215931,0.00020666,2]
[322802262,1713333032857,-688.59429255,0.00020666,2]
[322802263,1713333032872,-154.86062544,0.00020666,2]
[322802264,1713333032883,-471.02610279,0.00020666,2]
[322802265,1713333032892,-654.45266231,0.00020666,2]
[322802266,1713333032901,-72389.02048931,0.00020666,2]
[322802267,1713333032911,-154.87609912,0.00020666,2]
[322802268,1713333032920,-154.87609912,0.00020666,2]
[322802269,1713333032930,-539.22318272,0.00020666,2]
[322802270,1713333032939,-154.86062544,0.00020667,2]
[322802271,1713333032949,-154.86062544,0.00020667,2]
[322802272,1713333032958,-2584.94589356,0.00020667,2]
[322802273,1713333032967,-469.12528489,0.00020667,2]
[322802274,1713333032977,-59089.3083695,0.00020668,2]
[322802275,1713333032986,-4907.85944013,0.00020671,2]
[322802276,1713333032995,-395.23415558,0.00020685,2]
[322802277,1713333033004,-300.63943999,0.0002077,2]
[322802278,1713333033014,-193.89650112,0.0002077,2]
[322802279,1713333033023,-209.49598225,0.0002077,2]
[322802280,1713333033033,-154.86062544,0.0002077,2]
[322802281,1713333033042,-156.11880533,0.0002077,2]
[322802282,1713333033051,-155.29440472,0.0002077,2]
[322802283,1713333033060,-155.11799303,0.0002077,2]
[322802284,1713333033069,-163.14584412,0.0002077,2]
[322802285,1713333033079,-563.87316233,0.0002077,2]
[322802286,1713333033088,-162.34978659,0.0002077,2]
[322802287,1713333033097,-157.04962732,0.0002077,2]
[322802288,1713333033107,-4098.02208353,0.0002077,2]
[322802289,1713333033116,-406.49971412,0.0002077,2]
[322802290,1713333033129,-203.77456091,0.0002077,2]
[322802291,1713333033139,-240.17741316,0.00020771,2]
[322802292,1713333033148,-161.06681622,0.00020771,2]
[322802293,1713333033157,-302.11538839,0.00020771,2]
[322802294,1713333033167,-171.88876971,0.00020771,2]
[322802295,1713333033176,-8509.19658507,0.00020771,2]
[322802296,1713333033185,-5712.54496532,0.00020773,2]
[322802297,1713333033195,-181.59252504,0.00020773,2]
[322802298,1713333033204,-155.09122506,0.00020773,2]
[322802299,1713333033214,-186.43714387,0.00020773,2]
[322802300,1713333033223,-622.96914813,0.00020773,2]
[322802301,1713333033232,-172.10563131,0.00020773,2]
[322802302,1713333033242,-173.53068446,0.00020773,2]
[322802303,1713333033251,-309.65339488,0.00020779,2]
[322802304,1713333033260,-186.90812025,0.00020779,2]
[322802305,1713333033269,-154.9608051,0.00020779,2]
[322802306,1713333033278,-154.93886695,0.00020779,2]
[322802307,1713333033287,-155.00650324,0.00020779,2]
[322802308,1713333033296,-1672.47206625,0.00020779,2]
[322802309,1713333033306,-3372.17745143,0.00020785,2]
[322802310,1713333033315,-891.24104907,0.00020786,2]
[322802311,1713333033324,-500.0,0.0002088,2]
[322802312,1713333033333,-500.0,0.0002088,2]
[322802313,1713333033342,-646.30803568,0.0002088,2]
[322802314,1713333033351,-500.0,0.0002088,2]
[322802315,1713333033361,-259.46211261,0.0002088,2]
[322802316,1713333033373,-500.0,0.0002088,2]
[322802317,1713333033383,-500.0,0.0002088,2]
[322802318,1713333033392,-500.0,0.0002088,2]
[322802319,1713333033401,-500.0,0.0002088,2]
[322802320,1713333033411,-264.12731696,0.0002088,2]
[322802321,1713333033420,-249.5636887,0.0002088,2]
[322802322,1713333033430,-1574.32701702,0.00020881,2]
[322802323,1713333033439,-475.41037518,0.00020881,2]
[322802324,1713333033449,-156.60093833,0.00020885,2]
[322802325,1713333033458,-154.89613237,0.00020888,2]
[322802326,1713333033467,-154.90194483,0.00020889,2]
[322802327,1713333033476,-309.69393932,0.00020889,2]
[322802328,1713333033486,-409.85256063,0.00020894,2]
[322802329,1713333033495,-299.88879997,0.00020894,2]
[322802330,1713333033505,-6747.01885684,0.00020998,2]
[322802331,1713333033514,-936.94622999,0.00020998,2]
[322802332,1713333033523,-225.41827227,0.00020998,2]
[322802333,1713333033532,-340.21515474,0.00020998,2]
[322802334,1713333033541,-250.14081499,0.00020998,4]
[322802335,1713333033551,-207.2906563,0.00020998,2]
[322802336,1713333033560,-246.31980084,0.00020998,2]
[322802337,1713333033570,-156.54301374,0.00020999,2]
[322802338,1713333033579,-271.96201848,0.00020999,2]
[322802339,1713333033588,-666.2937328,0.00020999,2]
[322802340,1713333033601,-240.94703798,0.00020999,2]
[322802341,1713333033610,-525.209166,0.00020999,2]
[322802342,1713333033624,-215.98297057,0.00020999,2]
[322802343,1713333033633,-500.0,0.00020999,2]
[322802344,1713333033643,-5575.62419768,0.00021,2]
[322802345,1713333033652,-207.72998263,0.0002102,2]
[322802346,1713333033661,-156.75772237,0.0002102,2]
[322802347,1713333033670,-209.3590108,0.0002102,2]
[322802348,1713333033680,-157.96219245,0.0002102,2]
[322802349,1713333033689,-184.6826765,0.0002102,2]
[322802350,1713333033698,-156.05805323,0.0002102,2]
[322802351,1713333033707,-303.82062157,0.0002102,2]
[322802352,1713333033716,-155.71230227,0.0002102,2]
[322802353,1713333033726,-307.3682478,0.0002102,2]
[322802354,1713333033735,-302.53645703,0.0002102,2]
[322802355,1713333033744,-264.99413703,0.0002102,2]
[322802356,1713333033753,-155.90777294,0.0002102,2]
[322802357,1713333033762,-154.96028719,0.0002102,2]
[322802358,1713333033771,-207.30992647,0.0002102,2]
[322802359,1713333033780,-203.99999933,0.0002102,2]
[322802360,1713333033790,-180.30458855,0.0002102,2]
[322802361,1713333033799,-155.6894373,0.0002102,2]
[322802362,1713333033808,-269.24831569,0.0002102,2]
[322802363,1713333033818,-156.16428403,0.0002102,2]
[322802364,1713333033827,-284.97852371,0.0002102,2]
[322802365,1713333033836,-154.98071389,0.00021037,2]
[322802366,1713333033845,-268.68794641,0.00021367,2]
[322802367,1713333033854,-268.68794641,0.00021786,2]
[322802368,1713333033863,-158.857458,0.00022,2]
[322802369,1713333033878,-268.68794641,0.00022204,2]
[322802370,1713333033886,-952.47347606,0.00022212,2]
[322802371,1713333033896,-420.0,0.00022486,2]
[322802372,1713333033905,-268.68794641,0.00022623,2]
[322802373,1713333033914,-420.0,0.0002273,2]
[322802374,1713333033924,-3372.1774514,0.00022875,2]
[322802375,1713333033933,-243.24834116,0.00023,2]
[322802376,1713333033941,-268.68794641,0.00023041,2]
[322802377,1713333033950,-268.68794641,0.0002346,2]
[322802378,1713333033960,-898.04916909,0.00023496,2]
[322802379,1713333033969,-268.68794641,0.00023878,2]
[322802380,1713333033978,-2389.93546808,0.000239,2]
[322802381,1713333033987,-395.23415558,0.0002429,2]
[322802382,1713333033996,-268.68794641,0.00024297,2]
[322802383,1713333034006,-587.0,0.00024468,2]
[322802384,1713333034016,-157.08313082,0.000245,2]
[322802385,1713333034025,-633.90245845,0.00024671,2]
[322802386,1713333034034,-268.68794641,0.00024715,2]
[322802387,1713333034043,-3372.1774514,0.00024966,2]
[322802388,1713333034052,-154.98357864,0.00025,2]
[322802389,1713333034061,-587.0,0.00025003,2]
[322802390,1713333034070,-268.68794641,0.00025134,2]
[322802391,1713333034079,-3062.24756483,0.000255,4]
[322802392,1713333034088,-268.68794641,0.00025552,2]
[322802393,1713333034097,-620.69512292,0.00025904,2]
[322802394,1713333034106,-268.68794641,0.00025971,2]
[322802395,1713333034115,-268.68794641,0.00026389,2]
[322802396,1713333034127,-823.0,0.00026624,2]
[322802397,1713333034136,-3012.37535262,0.000267,3]
[322802398,1713333034146,-268.68794641,0.00026808,2]
[322802399,1713333034155,-8507.18295185,0.00027,2]
[322802400,1713333034164,-309.59752631,0.00027,2]
[322802401,1713333034173,-332.01154009,0.00027,2]
[322802402,1713333034182,-3372.1774514,0.00027056,2]
[322802403,1713333034191,-620.03475615,0.000272,2]
[322802404,1713333034200,-268.68794641,0.00027226,2]
[322802405,1713333034209,-255.03733938,0.00027385,2]
[322802406,1713333034218,-155.07041477,0.00027386,2]
[322802407,1713333034227,-160.55430088,0.00027389,2]
[322802408,1713333034236,-154.94105672,0.00027389,2]
[322802409,1713333034248,-154.95624087,0.00027389,2]
[322802410,1713333034257,-270.62839001,0.00027389,2]
[322802411,1713333034266,-2459.88488251,0.00027389,2]
[322802412,1713333034276,-167.32835926,0.0002739,2]
[322802413,1713333034285,-157.593849,0.00027397,2]
[322802414,1713333034294,-177.928811,0.00027397,2]
[322802415,1713333034304,-1000.0,0.00027397,2]
[322802416,1713333034313,-166.666666,0.00027397,2]
[322802417,1713333034322,-9170.8493847,0.00027397,2]
[322802418,1713333034331,-254.817243,0.00027397,2]
[322802419,1713333034340,-800.8369821,0.000275,17]
[322802420,1713333034350,-823.0,0.00027504,2]
[322802421,1713333034359,-268.68794641,0.00027645,2]
[322802422,1713333034368,-395.23415558,0.00027894,2]
[322802423,1713333034377,-159.82080584,0.00027995,2]
[322802424,1713333034397,-193.34893369,0.00027995,2]
[322802425,1713333034433,-244.58345791,0.00027995,2]
[322802426,1713333034442,-151.1669455,0.00027999,2]
[322802427,1713333034452,-80000.0,0.00028,2]
[322802428,1713333034461,-166.666666,0.00028038,2]
[322802429,1713333034470,-268.68794641,0.00028063,2]
[322802430,1713333034479,-268.68794641,0.00028482,2]
[322802431,1713333034488,-620.00173781,0.0002856,2]
[322802432,1713333034498,-166.666666,0.00028679,2]
[322802433,1713333034507,-268.68794641,0.000289,2]
[322802434,1713333034516,-1152.0,0.00028971,2]
[322802435,1713333034525,-150.0,0.00028999,2]
[322802436,1713333034535,-5000.0,0.00029,2]
[322802437,1713333034544,-3372.1774514,0.00029146,2]
[322802438,1713333034552,-166.666666,0.00029321,2]
[322802439,1713333034562,-432.982941,0.00029662,2]
[322802440,1713333034571,-19386.73305713,0.000299,2]
[322802441,1713333034580,-383.06367649,0.000299,2]
[322802442,1713333034590,-166.666666,0.00029962,2]
[322802443,1713333034602,-620.00008689,0.00029988,2]
[322802444,1713333034611,-3000.0,0.0003,4]
[322802445,1713333034622,-154.87609912,0.0003,4]
[322802446,1713333034631,-154.87609912,0.0003,2]
[322802447,1713333034640,-285.45266682,0.0003,4]
[322802448,1713333034649,-154.87609912,0.0003,4]
[322802449,1713333034658,-253.64617891,0.0003,4]
[322802450,1713333034667,-500.0,0.00030136,2]
[322802451,1713333034677,-195.803347,0.00030137,2]
[322802452,1713333034686,-195.803347,0.00030137,41]
[322802453,1713333034695,-195.803347,0.00030137,80]
[322802454,1713333034704,-195.803347,0.00030137,119]
[322802455,1713333034713,-500.0,0.00030191,2]
[322802456,1713333034722,-500.0,0.00030246,2]
[322802457,1713333034731,-1152.0,0.00030254,2]
[322802458,1713333034741,-500.0,0.00030301,2]
[322802459,1713333034753,-500.0,0.00030356,2]
[322802460,1713333034763,-500.0,0.0003041,2]
[322802461,1713333034772,-500.0,0.00030465,2]
[322802462,1713333034782,-500.0,0.0003052,2]
[322802463,1713333034795,-184.5552508,0.00030575,2]
[322802464,1713333034809,-166.666666,0.00030603,2]
[322802465,1713333034820,-320.4553623,0.000308,10]
[322802466,1713333034829,-10674.26745903,0.00031,5]
[322802467,1713333034840,-620.00000434,0.00031487,2]
[322802468,1713333034849,-1613.0,0.00031525,2]
[322802469,1713333034858,-154.86062544,0.0003189,10]
[322802470,1713333034870,-191.66744438,0.00032,4]
[322802471,1713333034881,-1631.93864811,0.00032874,2]
[322802472,1713333034892,-500.0,0.00032877,2]
[322802473,1713333034904,-500.0,0.00032877,2]
[322802474,1713333034914,-500.0,0.00032877,2]
[322802475,1713333034923,-587.73116803,0.00032877,2]
[322802476,1713333034933,-500.0,0.00032877,2]
[322802477,1713333034942,-500.0,0.00032877,2]
[322802478,1713333034952,-500.0,0.00032877,2]
[322802479,1713333034962,-500.0,0.00032877,2]
[322802480,1713333034971,-500.0,0.00032877,2]
[322802481,1713333034982,-500.0,0.00032877,2]
[322802482,1713333034992,-5200.0,0.000329,9]
[322802483,1713333035001,-620.00000022,0.00033061,2]
[322802484,1713333035010,-254.817243,0.00033165,2]
[322802485,1713333035020,-1613.0,0.0003328,2]
[322802486,1713333035030,-1543.97243726,0.00033286,2]
[322802487,1713333035040,-500.0,0.00033333,2]
[322802488,1713333035050,-3169.74149541,0.000339,2]
[322802489,1713333035060,-186.93924961,0.00033999,10]
[322802490,1713333035071,-4486.61,0.00033999,2]
[322802491,1713333035080,-4486.61,0.00033999,2]
[322802492,1713333035089,-4486.61,0.00033999,2]
[322802493,1713333035098,-4486.61,0.00033999,2]
[322802494,1713333035107,-4486.61,0.00033999,2]
[322802495,1713333035117,-4486.61,0.00033999,2]
[322802496,1713333035127,-4486.61,0.00033999,2]
[322802497,1713333035136,-4486.61,0.00033999,2]
[322802498,1713333035145,-4486.61,0.00033999,2]
[322802499,1713333035155,-4486.61,0.00033999,2]
[322802500,1713333035164,-143437.48668042,0.00034,5]
[322802501,1713333035173,-465.62426375,0.00034,4]
[322802502,1713333035183,-581999.19838116,0.00034,60]
[322802503,1713333035192,-2258.0,0.00034304,2]
[322802504,1713333035299,-157.593849,0.00034703,2]
[322802505,1713333035310,-620.00000001,0.00034714,2]
[322802506,1713333035319,-1000.0,0.000348,3]
[322802507,1713333035329,-1000.0,0.000348,3]
[322802508,1713333035339,-154.87609912,0.00035,4]
[322802509,1713333035348,-4682.07602,0.00035,4]
[322802510,1713333035357,-597.24868455,0.00035,2]
[322802511,1713333035367,-1363.60113601,0.00035,30]
[322802512,1713333035377,-526.008189,0.00035616,120]
[322802513,1713333035386,-154.86062544,0.0003589,2]
[322802514,1713333035396,-2258.0,0.00036607,2]
[322802515,1713333035406,-3508.99266883,0.00037,2]
[322802516,1713333035416,-3162.0,0.00037328,2]
[322802517,1713333035425,-3000.0,0.000375,32]
[322802518,1713333035435,-3000.0,0.0003751,32]
[322802519,1713333035445,-3000.0,0.0003752,32]
[322802520,1713333035455,-3000.0,0.0003753,32]
[322802521,1713333035464,-3000.0,0.0003754,32]
[322802522,1713333035475,-3000.0,0.0003755,32]
[322802523,1713333035485,-3000.0,0.0003756,32]
[322802524,1713333035495,-3000.0,0.0003757,32]
[322802525,1713333035504,-3000.0,0.0003758,32]
[322802526,1713333035514,-3000.0,0.0003759,32]
[322802527,1713333035524,-3000.0,0.000376,32]
[322802528,1713333035533,-3000.0,0.0003761,32]
[322802529,1713333035543,-3000.0,0.0003762,32]
[322802530,1713333035552,-3000.0,0.0003763,32]
[322802531,1713333035562,-3000.0,0.0003764,32]
[322802532,1713333035571,-3000.0,0.0003765,32]
[322802533,1713333035581,-3000.0,0.0003766,32]
[322802534,1713333035592,-3000.0,0.0003767,32]
[322802535,1713333035606,-3000.0,0.0003768,32]
[322802536,1713333035616,-3000.0,0.0003769,32]
[322802537,1713333035628,-3000.0,0.000377,32]
[322802538,1713333035638,-3000.0,0.0003771,32]
[322802539,1713333035647,-3000.0,0.0003772,32]
[322802540,1713333035657,-3000.0,0.0003773,32]
[322802541,1713333035667,-3000.0,0.0003774,32]
[322802542,1713333035678,-3000.0,0.0003775,32]
[322802543,1713333035689,-3000.0,0.0003776,33]
[322802544,1713333035699,-3000.0,0.0003777,33]
[322802545,1713333035708,-3000.0,0.0003778,33]
[322802546,1713333035718,-3000.0,0.0003779,33]
[322802547,1713333035728,-3000.0,0.000378,33]
[322802548,1713333035738,-3000.0,0.0003781,33]
[322802549,1713333035748,-3000.0,0.0003782,33]
[322802550,1713333035758,-3000.0,0.0003783,33]
[322802551,1713333035768,-3534.115002,0.0003784,33]
[322802552,1713333035778,-155.00796312,0.00038,7]
[322802553,1713333035787,-254.817243,0.00038933,2]
[322802554,1713333035797,-170.47025553,0.00038991,7]
[322802555,1713333035807,-170.47025553,0.00039336,7]
[322802556,1713333035816,-417.314,0.00039515,2]
[322802557,1713333035827,-602.21342481,0.0004,4]
[322802558,1713333035837,-155.14795104,0.0004,2]
[322802559,1713333035847,-3162.0,0.00040268,3]
[322802560,1713333035858,-522.0,0.00040619,5]
[322802561,1713333035868,-1062.53549657,0.00041,4]
[322802562,1713333035878,-22809.4786,0.00041004,30]
[322802563,1713333035889,-170.47025554,0.00041109,30]
[322802564,1713333035899,-526.008189,0.00041553,120]
[322802565,1713333035910,-157.593849,0.00042009,2]
[322802566,1713333035920,-150.84915085,0.00042351,2]
[322802567,1713333035930,-417.0,0.00042515,2]
[322802568,1713333035940,-301.6983017,0.00043063,4]
[322802569,1713333035950,-603.3966034,0.00043787,7]
[322802570,1713333035960,-4427.0,0.00044295,3]
[322802571,1713333035970,-166.82709291,0.00044523,4]
[322802572,1713333035981,-683.0,0.00044644,30]
[322802573,1713333035992,-254.817243,0.00044701,2]
[322802574,1713333036002,-299.0,0.0004481,29]
[322802575,1713333036012,-8531.62297078,0.00045,120]
[322802576,1713333036023,-154.87609912,0.000459,4]
[322802577,1713333036033,-586.0,0.000461,30]
[322802578,1713333036043,-526.008189,0.00047489,120]
[322802579,1713333036053,-6198.0,0.00048725,3]
[322802580,1713333036062,-3378.95802152,0.00049,120]
[322802581,1713333036073,-177.928811,0.00049315,2]
[322802582,1713333036082,-157.593849,0.00049315,2]
[322802583,1713333036091,-154.87609912,0.0005,30]
[322802584,1713333036101,-254.817243,0.00050469,2]
[322802585,1713333036110,-3000.0,0.00051,85]
[322802586,1713333036120,-3000.0,0.0005101,85]
[322802587,1713333036130,-3000.0,0.0005102,85]
[322802588,1713333036138,-3000.0,0.0005103,85]
[322802589,1713333036148,-3000.0,0.0005104,85]
[322802590,1713333036158,-3000.0,0.0005105,85]
[322802591,1713333036168,-3000.0,0.0005106,85]
[322802592,1713333036179,-5889.970877,0.0005107,85]
[322802593,1713333036189,-153.0,0.00052918,2]
[322802594,1713333036199,-153.0,0.00052918,2]
[322802595,1713333036209,-306.6651876,0.00052918,2]
[322802596,1713333036219,-153.0,0.00052918,2]
[322802597,1713333036230,-153.0,0.00052918,2]
[322802598,1713333036240,-153.0,0.00052918,2]
[322802599,1713333036250,-153.0,0.00052918,2]
[322802600,1713333036261,-153.0,0.00052918,2]
[322802601,1713333036272,-153.0,0.00052918,2]
[322802602,1713333036282,-153.0,0.00052918,2]
[322802603,1713333036292,-153.0,0.00052918,2]
[322802604,1713333036304,-153.0,0.00052918,2]
[322802605,1713333036314,-436.534692,0.00052918,2]
[322802606,1713333036324,-153.0,0.00052918,2]
[322802607,1713333036334,-153.0,0.00052918,2]
[322802608,1713333036344,-153.0,0.00052918,2]
[322802609,1713333036353,-153.0,0.00052918,2]
[322802610,1713333036363,-526.008189,0.00053425,120]
[322802611,1713333036374,-2651.0,0.00053597,10]
[322802612,1713333036385,-500.0,0.00054794,120]
[322802613,1713333036396,-500.0,0.00054794,120]
[322802614,1713333036407,-500.0,0.00054794,120]
[322802615,1713333036418,-500.0,0.00054794,120]
[322802616,1713333036429,-500.0,0.00054794,120]
[322802617,1713333036440,-501.16683665,0.00054794,120]
[322802618,1713333036450,-500.0,0.00054794,120]
[322802619,1713333036461,-500.0,0.00054794,120]
[322802620,1713333036472,-500.0,0.00054794,120]
[322802621,1713333036483,-500.0,0.00054794,120]
[322802622,1713333036494,-500.0,0.00054794,120]
[322802623,1713333036505,-500.0,0.00054794,120]
[322802624,1713333036514,-510.95105762,0.00054794,120]
[322802625,1713333036525,-500.0,0.00054794,120]
[322802626,1713333036536,-500.0,0.00054794,120]
[322802627,1713333036546,-500.855635,0.00054794,120]
[322802628,1713333036556,-504.9309004,0.00054794,120]
[322802629,1713333036567,-544.63709902,0.00054794,120]
[322802630,1713333036577,-501.49259134,0.00054794,120]
[322802631,1713333036588,-500.0,0.00054794,120]
[322802632,1713333036600,-508.79503722,0.00054794,120]
[322802633,1713333036611,-500.0,0.00054794,120]
[322802634,1713333036620,-7591.79,0.00054794,120]
[322802635,1713333036630,-503.00169088,0.00054794,120]
[322802636,1713333036642,-500.76508986,0.00054794,120]
[322802637,1713333036652,-500.0,0.00054794,120]
[322802638,1713333036663,-500.0,0.00054794,120]
[322802639,1713333036673,-500.0,0.00054794,120]
[322802640,1713333036684,-500.0,0.00054794,120]
[322802641,1713333036695,-500.0,0.00054794,120]
[322802642,1713333036706,-502.20920732,0.00054794,120]
[322802643,1713333036717,-500.0,0.00054794,120]
[322802644,1713333036727,-500.0,0.00054794,120]
[322802645,1713333036738,-500.0,0.00054794,120]
[322802646,1713333036749,-155.84189476,0.00054794,120]
[322802647,1713333036759,-500.0,0.00054794,120]
[322802648,1713333036770,-357.72623797,0.00054794,120]
[322802649,1713333036781,-500.0,0.00054794,120]
[322802650,1713333036791,-500.0,0.00054794,120]
[322802651,1713333036801,-500.0,0.00054794,120]
[322802652,1713333036811,-500.0,0.00054794,120]
[322802653,1713333036821,-505.61205828,0.00054794,120]
[322802654,1713333036832,-500.0,0.00054794,120]
[322802655,1713333036842,-500.0,0.00054794,120]
[322802656,1713333036852,-500.0,0.00054794,120]
[322802657,1713333036863,-500.0,0.00054794,120]
[322802658,1713333036873,-500.0,0.00054794,120]
[322802659,1713333036884,-500.0,0.00054794,120]
[322802660,1713333036894,-500.0,0.00054794,120]
[322802661,1713333036904,-500.0,0.00054794,120]
[322802662,1713333036915,-500.0,0.00054794,120]
[322802663,1713333036924,-502.16989668,0.00054794,120]
[322802664,1713333036933,-500.0,0.00054794,120]
[322802665,1713333036942,-551.55827632,0.00054794,120]
[322802666,1713333036953,-503.5662047,0.00054794,120]
[322802667,1713333036964,-500.0,0.00054794,120]
[322802668,1713333036974,-500.28008806,0.00054794,120]
[322802669,1713333036984,-237.42199443,0.00054794,120]
[322802670,1713333036995,-431.60408473,0.00054794,120]
[322802671,1713333037005,-504.34824119,0.00054794,120]
[322802672,1713333037015,-500.0,0.00054794,120]
[322802673,1713333037026,-504.09738044,0.00054794,120]
[322802674,1713333037036,-500.0,0.00054794,120]
[322802675,1713333037046,-500.0,0.00054794,120]
[322802676,1713333037056,-500.0,0.00054794,120]
[322802677,1713333037067,-500.0,0.00054794,120]
[322802678,1713333037078,-500.0,0.00054794,120]
[322802679,1713333037089,-500.0,0.00054794,120]
[322802680,1713333037102,-500.0,0.00054794,120]
[322802681,1713333037112,-502.57135408,0.00054794,120]
[322802682,1713333037122,-500.0,0.00054794,120]
[322802683,1713333037134,-500.0,0.00054794,120]
[322802684,1713333037143,-501.0123456,0.00054794,120]
[322802685,1713333037154,-500.0,0.00054794,120]
[322802686,1713333037166,-500.0,0.00054794,120]
[322802687,1713333037176,-500.0,0.00054794,120]
[322802688,1713333037188,-500.0,0.00054794,120]
[322802689,1713333037199,-500.81569174,0.00054794,120]
[322802690,1713333037211,-500.0,0.00054794,120]
[322802691,1713333037221,-500.0,0.00054794,120]
[322802692,1713333037231,-500.24477663,0.00054794,120]
[322802693,1713333037241,-500.0,0.00054794,120]
[322802694,1713333037251,-500.0,0.00054794,120]
[322802695,1713333037261,-500.0,0.00054794,120]
[322802696,1713333037271,-382.6160329,0.00054794,120]
[322802697,1713333037282,-500.0,0.00054794,120]
[322802698,1713333037291,-172.25679442,0.00054794,120]
[322802699,1713333037302,-500.0,0.00054794,120]
[322802700,1713333037313,-604.23929534,0.00054794,120]
[322802701,1713333037324,-500.0,0.00054794,120]
[322802702,1713333037335,-500.0,0.00054794,120]
[322802703,1713333037345,-500.0,0.00054794,120]
[322802704,1713333037355,-501.20201264,0.00054794,120]
[322802705,1713333037364,-500.0,0.00054794,120]
[322802706,1713333037374,-500.0,0.00054794,120]
[322802707,1713333037384,-646.28498576,0.00054794,120]
[322802708,1713333037392,-500.0,0.00054794,120]
[322802709,1713333037402,-500.0,0.00054794,120]
[322802710,1713333037413,-500.0,0.00054794,120]
[322802711,1713333037423,-500.0,0.00054794,120]
[322802712,1713333037433,-500.0,0.00054794,120]
[322802713,1713333037444,-500.0,0.00054794,120]
[322802714,1713333037454,-500.0,0.00054794,120]
[322802715,1713333037464,-500.0,0.00054794,120]
[322802716,1713333037474,-500.0,0.00054794,120]